[Event "Chess sin Fronteras-IM 2025"]
[Site "San Jose"]
[Date "2025.02.17"]
[Round "8.5"]
[White "Sivakumar, Shaashwath"]
[Black "Liu, Patrick"]
[Result "1/2-1/2"]
[Annotator "RC"]
[ECO "E11"]
[WhiteElo "2273"]
[BlackElo "2159"]
[PlyCount "89"]
[EventDate "2025.02.13"]
[EventType "tourn"]
[EventCountry "USA"]
[SourceTitle "playchess.com"]
[Source "ChessBase"]
[SourceQuality "1"]
[TimeControl "5400+30"]

1. d4 {[%emt 0:04:05]} Nf6 {[%emt 0:00:03]} 2. c4 {[%emt 0:00:09]} e6 {[%emt 0:00:05]} 3. g3 {[%emt 0:00:03]} d5 {[%emt 0:00:12]} 4. Nf3 {[%emt 0:00:04]} Bb4+ {[%emt 0:00:09]} 5. Bd2 {[%emt 0:00:06]} Be7 {[%emt 0:00:06]} 6. Bg2 {[%emt 0:00:05]} O-O {[%emt 0:00:12]} 7. O-O {[%emt 0:00:07]} c6 {[%emt 0:00:14]} 8. Qc2 {[%emt 0:00:05]} Nbd7 {[%emt 0:00:07]} 9. Bf4 {[%emt 0:00:19]} h6 {[%emt 0:03:46]} 10. Rd1 {[%emt 0:00:52]} a5 {[%emt 0:00:06]} 11. Nbd2 {[%emt 0:00:15]} Nh5 {[%emt 0:05:02]} 12. Be3 {[%emt 0:00:11]} f5 {[%emt 0:03:04]} 13. Ne5 {[%emt 0:01:30]} Bd6 {[%emt 0:09:59]} 14. Ndf3 {[%emt 0:05:16]} Qf6 {[%emt 0:08:08]} 15. Bd2 {[%emt 0:17:01]} Nxe5 {[%emt 0:07:25]} 16. dxe5 {[%emt 0:00:05]} Bxe5 {[%emt 0:00:04]} 17. Nxe5 {[%emt 0:00:04]} Qxe5 {[%emt 0:00:06]} 18. Bf3 {[%emt 0:01:03]} f4 {[%emt 0:21:06]} 19. Qg6 {[%emt 0:07:04]} Nf6 {[%emt 0:01:38]} 20. Bxf4 {[%emt 0:00:25]} Qxb2 {[%emt 0:01:10]} 21. Bxh6 {[%emt 0:07:00]} Ne8 {[%emt 0:09:22]} 22. Bg5 {[%emt 0:00:41]} Qe5 {[%emt 0:00:43]} 23. Rab1 {[%emt 0:05:40]} Qf5 {[%emt 0:01:24]} 24. Qxf5 {[%emt 0:00:55]} Rxf5 {[%emt 0:00:17]} 25. h4 {[%emt 0:00:11]} Nd6 {[%emt 0:00:27]} 26. cxd5 {[%emt 0:04:38]} exd5 {[%emt 0:01:02]} 27. Bf4 {[%emt 0:00:09]} Rf6 {[%emt 0:10:26]} 28. Rb6 {[%emt 0:23:10]} a4 {[%emt 0:05:14]} 29. Bxd5+ {[%emt 0:00:59]} cxd5 {[%emt 0:00:39]} 30. Rxd6 {[%emt 0:06:18]} Rxd6 {[%emt 0:00:13]} 31. Bxd6 {[%emt 0:00:03]} Be6 {[%emt 0:05:51]} 32. Rb1 {[%emt 0:01:26]} d4 {[%emt 0:03:14]} 33. a3 {[%emt 0:00:27]} Bb3 {[%emt 0:00:09]} 34. Rc1 {[%emt 0:04:51]} Rd8 {[%emt 0:00:39]} 35. Be5 {[%emt 0:00:07]} d3 {[%emt 0:02:21]} 36. exd3 {[%emt 0:00:07]} Rxd3 {[%emt 0:00:04]} 37. Rc8+ {[%emt 0:00:12]} Kf7 {[%emt 0:04:13]} 38. Rc7+ {[%emt 0:00:04]} Ke6 {[%emt 0:00:00]} 39. Bxg7 {[%emt 0:00:07]} Bd5 {[%emt 0:00:00]} 40. Kh2 {[%emt 0:03:14]} Rxa3 {[%emt 0:00:00]} 41. g4 {[%emt 0:00:05]} Rf3 {[%emt 0:00:00]} 42. h5 {[%emt 0:00:28]} Rxf2+ {[%emt 0:00:00]} 43. Kg3 {[%emt 0:00:05]} Rf7 {[%emt 0:00:00]} 44. Rd7 {[%emt 0:12:44]} Re7 45. Rxe7+ {[%emt 0:00:00]} 1/2-1/2

[Event "Chess sin Fronteras-IM 2025"]
[Site "San Jose"]
[Date "2025.02.18"]
[Round "9.1"]
[White "Liu, Patrick"]
[Black "Martinez Romero, Martin"]
[Result "1-0"]
[Annotator "RC"]
[ECO "B81"]
[WhiteElo "2159"]
[BlackElo "2393"]
[PlyCount "87"]
[EventDate "2025.02.13"]
[EventType "tourn"]
[EventCountry "USA"]
[SourceTitle "playchess.com"]
[Source "ChessBase"]
[SourceQuality "1"]
[TimeControl "5400+30"]

1. e4 {[%emt 0:00:30]} c5 {[%emt 0:00:30]} 2. Nf3 {[%emt 0:00:30]} e6 {[%emt 0:00:30]} 3. d4 {[%emt 0:00:30]} cxd4 {[%emt 0:00:30]} 4. Nxd4 {[%emt 0:00:30]} Nf6 {[%emt 0:00:30]} 5. Nc3 {[%emt 0:00:30]} d6 {[%emt 0:00:30]} 6. Be3 {[%emt 0:00:30]} Be7 {[%emt 0:00:30]} 7. g4 {[%emt 0:00:30]} h5 {[%emt 0:00:30]} 8. f3 {[%emt 0:00:30]} hxg4 {[%emt 0:00:30]} 9. fxg4 {[%emt 0:00:30]} Nc6 {[%emt 0:00:30]} 10. g5 {[%emt 0:00:30]} Nh5 {[%emt 0:00:30]} 11. Rg1 {[%emt 0:00:30]} g6 {[%emt 0:00:30]} 12. Qd2 {[%emt 0:00:30]} a6 {[%emt 0:00:30]} 13. O-O-O {[%emt 0:00:30]} Ne5 {[%emt 0:00:30]} 14. Be2 {[%emt 0:00:30]} b5 {[%emt 0:00:30]} 15. Nf3 {[%emt 0:00:30]} Bb7 {[%emt 0:00:30]} 16. a3 {[%emt 0:00:30]} Qc7 {[%emt 0:00:30]} 17. Bd4 {[%emt 0:00:30]} Rc8 {[%emt 0:00:30]} 18. Kb1 {[%emt 0:00:30]} O-O {[%emt 0:00:30]} 19. Ne1 {[%emt 0:00:30]} Nc4 {[%emt 0:00:30]} 20. Bxc4 {[%emt 0:00:30]} Qxc4 {[%emt 0:00:30]} 21. e5 {[%emt 0:00:30]} dxe5 {[%emt 0:00:30]} 22. Bxe5 {[%emt 0:00:30]} Rfd8 {[%emt 0:00:30]} 23. Nd3 {[%emt 0:00:30]} a5 {[%emt 0:00:30]} 24. Qe2 {[%emt 0:00:30]} b4 {[%emt 0:00:30]} 25. Rg4 {[%emt 0:00:30]} Qa6 {[%emt 0:00:30]} 26. Rh4 {[%emt 0:00:30]} Ng7 {[%emt 0:00:30]} 27. Qe3 {[%emt 0:00:30]} Bg2 {[%emt 0:00:30]} 28. Rg1 {[%emt 0:00:30]} Qb7 {[%emt 0:00:30]} 29. Ne4 {[%emt 0:00:30]} Qb5 {[%emt 0:00:30]} 30. Bxg7 {[%emt 0:00:30]} Kxg7 {[%emt 0:00:30]} 31. Rxg2 {[%emt 0:00:30]} bxa3 {[%emt 0:00:30]} 32. Qh3 {[%emt 0:00:30]} Rh8 {[%emt 0:00:30]} 33. Nf6 {[%emt 0:00:30]} Rxh4 {[%emt 0:00:30]} 34. Qxh4 {[%emt 0:00:30]} Rh8 {[%emt 0:00:30]} 35. Qd4 {[%emt 0:00:30]} e5 {[%emt 0:00:30]} 36. Qxe5 {[%emt 0:00:30]} Qxe5 {[%emt 0:00:30]} 37. Nxe5 {[%emt 0:00:30]} Bxf6 {[%emt 0:00:30]} 38. gxf6+ {[%emt 0:00:30]} Kxf6 {[%emt 0:00:30]} 39. Ng4+ {[%emt 0:00:30]} Ke6 {[%emt 0:00:30]} 40. bxa3 {[%emt 0:00:30]} f5 {[%emt 0:00:30]} 41. Ne3 {[%emt 0:00:30]} Kf6 {[%emt 0:00:30]} 42. Nd5+ {[%emt 0:00:30]} Ke5 {[%emt 0:00:30]} 43. Ne7 {[%emt 0:00:30]} Rh3 {[%emt 0:00:30]} 44. Nxg6+ {[%emt 0:00:30]} 1-0

[Event "Chess sin Fronteras-IM 2025"]
[Site "San Jose"]
[Date "2025.02.18"]
[Round "9.2"]
[White "Jimenez Garcia, Emmanuel"]
[Black "Sivakumar, Shaashwath"]
[Result "1/2-1/2"]
[Annotator "RC"]
[ECO "A07"]
[WhiteElo "2364"]
[BlackElo "2273"]
[PlyCount "119"]
[EventDate "2025.02.13"]
[EventType "tourn"]
[EventCountry "USA"]
[SourceTitle "playchess.com"]
[Source "ChessBase"]
[SourceQuality "1"]
[TimeControl "5400+30"]

1. Nf3 {[%emt 0:00:03]} d5 {[%emt 0:03:57]} 2. g3 {[%emt 0:00:05]} Bg4 {[%emt 0:00:04]} 3. Bg2 {[%emt 0:00:11]} e6 {[%emt 0:00:04]} 4. h3 {[%emt 0:01:10]} Bh5 {[%emt 0:00:08]} 5. c4 {[%emt 0:00:25]} c6 {[%emt 0:00:09]} 6. Qb3 {[%emt 0:00:23]} Qb6 {[%emt 0:00:07]} 7. d3 {[%emt 0:00:40]} Nd7 {[%emt 0:00:08]} 8. Be3 {[%emt 0:00:35]} Bc5 {[%emt 0:00:07]} 9. Bxc5 {[%emt 0:05:49]} Nxc5 {[%emt 0:00:16]} 10. Qc3 {[%emt 0:01:19]} Nf6 {[%emt 0:00:14]} 11. Nbd2 {[%emt 0:00:34]} a5 {[%emt 0:04:36]} 12. O-O {[%emt 0:00:19]} O-O {[%emt 0:00:09]} 13. Rfc1 {[%emt 0:00:30]} Ncd7 {[%emt 0:00:07]} 14. a3 {[%emt 0:03:40]} Rfe8 {[%emt 0:08:40]} 15. b4 {[%emt 0:00:45]} a4 {[%emt 0:00:45]} 16. b5 {[%emt 0:09:53]} c5 {[%emt 0:02:15]} 17. e3 {[%emt 0:10:50]} Qd6 {[%emt 0:09:03]} 18. d4 {[%emt 0:03:45]} Rec8 {[%emt 0:02:51]} 19. Ne5 {[%emt 0:04:58]} Bg6 {[%emt 0:10:04]} 20. cxd5 {[%emt 0:12:56]} Nxd5 {[%emt 0:01:45]} 21. Qb2 {[%emt 0:00:14]} cxd4 {[%emt 0:03:28]} 22. Ndc4 {[%emt 0:00:32]} Qe7 {[%emt 0:00:30]} 23. Nxd7 {[%emt 0:09:01]} Qxd7 {[%emt 0:00:07]} 24. e4 {[%emt 0:09:08]} Nc3 {[%emt 0:04:13]} 25. Nb6 {[%emt 0:00:57]} Qd6 {[%emt 0:00:22]} 26. Nxa8 {[%emt 0:00:10]} Rxa8 {[%emt 0:00:04]} 27. Rxc3 {[%emt 0:01:02]} dxc3 {[%emt 0:00:11]} 28. Qxc3 {[%emt 0:00:03]} f6 {[%emt 0:18:27]} 29. e5 {[%emt 0:00:46]} Qxe5 {[%emt 0:04:06]} 30. Qxe5 {[%emt 0:00:11]} fxe5 {[%emt 0:00:02]} 31. Bxb7 {[%emt 0:00:06]} Rb8 {[%emt 0:00:03]} 32. Bc6 {[%emt 0:00:19]} Bd3 {[%emt 0:00:07]} 33. b6 {[%emt 0:08:19]} Rxb6 {[%emt 0:00:17]} 34. Bxa4 {[%emt 0:00:07]} Kf7 {[%emt 0:05:01]} 35. Bd1 {[%emt 0:00:12]} Rb1 {[%emt 0:02:11]} 36. Rxb1 {[%emt 0:00:10]} Bxb1 {[%emt 0:00:04]} 37. Kf1 {[%emt 0:01:02]} Ke7 {[%emt 0:00:22]} 38. Ke2 {[%emt 0:00:18]} Kd6 {[%emt 0:00:14]} 39. Ke3 {[%emt 0:00:36]} Ba2 {[%emt 0:01:15]} 40. Bc2 {[%emt 0:01:03]} h6 {[%emt 0:00:06]} 41. Bg6 {[%emt 0:01:32]} Bd5 {[%emt 0:00:18]} 42. h4 {[%emt 0:02:21]} Bc6 {[%emt 0:02:57]} 43. Bc2 {[%emt 0:01:49]} Kc5 {[%emt 0:01:07]} 44. Bb3 {[%emt 0:01:28]} Bd5 {[%emt 0:00:45]} 45. Ba4 {[%emt 0:00:03]} Kc4 {[%emt 0:00:41]} 46. h5 {[%emt 0:02:19]} Kc5 {[%emt 0:02:41]} 47. Be8 {[%emt 0:00:35]} Kd6 {[%emt 0:01:18]} 48. a4 {[%emt 0:00:12]} Kc5 {[%emt 0:00:48]} 49. a5 {[%emt 0:04:24]} Bb7 {[%emt 0:00:25]} 50. Bd7 {[%emt 0:01:05]} Kb4 {[%emt 0:00:58]} 51. a6 {[%emt 0:00:43]} Bxa6 {[%emt 0:00:04]} 52. Ke4 {[%emt 0:00:04]} Be2 {[%emt 0:00:09]} 53. Be8 {[%emt 0:00:16]} Kc3 {[%emt 0:02:35]} 54. Kxe5 {[%emt 0:00:08]} Kd2 {[%emt 0:02:29]} 55. Kf4 {[%emt 0:01:36]} Bd1 {[%emt 0:01:39]} 56. g4 {[%emt 0:01:32]} Kd3 {[%emt 0:02:01]} 57. Bd7 {[%emt 0:00:50]} Ke2 {[%emt 0:02:00]} 58. f3 {[%emt 0:02:38]} Kf2 {[%emt 0:00:21]} 59. Bxe6 {[%emt 0:00:11]} Bxf3 {[%emt 0:00:23]} 60. Bf5 {[%emt 0:03:38]} 1/2-1/2

[Event "Chess sin Fronteras-IM 2025"]
[Site "San Jose"]
[Date "2025.02.18"]
[Round "9.3"]
[White "Perdomo, Leandro"]
[Black "Sivakumar, Shaaketh"]
[Result "1/2-1/2"]
[Annotator "ChessBase"]
[ECO "E21"]
[WhiteElo "2364"]
[BlackElo "2289"]
[PlyCount "40"]
[EventDate "2025.02.13"]
[EventType "tourn"]
[EventCountry "USA"]
[SourceTitle "playchess.com"]
[Source "ChessBase"]
[SourceQuality "1"]
[TimeControl "5400+30"]

1. d4 {[%emt 0:00:03]} Nf6 {[%emt 0:00:17]} 2. c4 {[%emt 0:00:28]} e6 {[%emt 0:00:03]} 3. Nf3 {[%emt 0:02:42]} Bb4+ {[%emt 0:00:29]} 4. Nc3 {[%emt 0:00:48]} O-O {[%emt 0:00:09]} 5. g3 {[%emt 0:01:56]} b6 {[%emt 0:00:20]} 6. Bg2 {[%emt 0:00:24]} Bb7 {[%emt 0:00:01]} 7. O-O {[%emt 0:00:22]} Bxc3 {[%emt 0:00:22]} 8. bxc3 {[%emt 0:00:02]} d6 {[%emt 0:00:44]} 9. Re1 {[%emt 0:07:17]} Nbd7 {[%emt 0:01:01]} 10. Nh4 {[%emt 0:06:51]} Bxg2 {[%emt 0:00:16]} 11. Nxg2 {[%emt 0:00:04]} c5 {[%emt 0:04:07]} 12. e4 {[%emt 0:01:32]} Qc7 {[%emt 0:02:10]} 13. Qd3 {[%emt 0:11:07]} Rac8 {[%emt 0:03:03]} 14. Ne3 {[%emt 0:01:11]} Rfe8 {[%emt 0:05:51]} 15. f3 {[%emt 0:12:22]} cxd4 {[%emt 0:06:20]} 16. cxd4 {[%emt 0:00:10]} e5 {[%emt 0:00:08]} 17. Bb2 {[%emt 0:00:49]} exd4 {[%emt 0:01:59]} 18. Bxd4 {[%emt 0:00:09]} Ne5 {[%emt 0:01:14]} 19. Bxe5 {[%emt 0:09:34]} dxe5 {[%emt 0:00:11]} 20. Red1 {[%emt 0:08:24]} Red8 {[%emt 0:02:30]} 1/2-1/2